Workbook

Sheet Proforma
E1: Multi-Residential Investment - Operating Information
A2: 2033 Garnet Ave A-D
A3: List Price: | D3: 2099999
A4: Down Payment: | C4: 0.55 | D4: =C4*(D3) -> 1154999.45
A5: Rehab Costs
A6: Number of units: | D6: 4
A7: Cost per Unit: | D7: =D3/D6 -> 524999.75
A8: Current GRM: | D8: =D3/D17 -> 14.95725783
A9: Market GRM: | D9: =D3/H17 -> 13.78549109
A10: Current CAP: | D10: =D21/D3 -> 0.04837764804
A11: Market CAP: | D11: =H21/(D3+D5) -> 0.0524392214
A12: Year Built / Age: | D12: 1980 | E12: no rent control | G12: Proposed Financing
A13: Approx. Lot Size: | D13: 3123 | G13: First Loan Amount: | I13: =D3-D4 -> 944999.55 | J13: New | K13: 30
A14: Approx. Gross RSF: | D14: 2489 | G14: Terms: | I14: 0.065
A15: Cost per Net RSF: | D15: =D3/D14 -> 843.7119325 | G15: Payment | I15: =-PMT(I14/12,360,I13) -> 5973.039978 | J15: DCR: | K15: =D21/D22 -> 1.417382841
A16: Annualized Operating Data | D16: Current Rents | H16: Market Rents
A17: Scheduled Gross Income: | D17: =(E44) -> 140400 | H17: =H44 -> 152334
A18: Vacancy Rate Reserve: | D18: =D17*E18 -> 4212 | E18: 0.03 | F18: 1 | H18: =I18*H17 -> 7616.7 | I18: 0.05 | J18: 1
A19: Gross Operating Income: | D19: =D17-D18 -> 136188 | H19: =H17-H18 -> 144717.3
A20: Expenses: | D20: =SUM(K42) -> 34594.9875 | E20: =D20/D17 -> 0.2464030449 | F20: 1 | H20: =K42 -> 34594.9875 | I20: =H20/H17 -> 0.2270995805 | J20: 1
A21: Net Operating Income: | D21: =D19-D20 -> 101593.0125 | H21: =H19-H20 -> 110122.3125
A22: Loan Payments: | D22: =I15*12 -> 71676.47973 | H22: =D22 -> 71676.47973
A23: Pre Tax Cash Flows: | D23: =D21-D22 -> 29916.53277 | E23: =D23/D4 -> 0.02590177231 | F23: 2 | H23: =H21-H22 -> 38445.83277 | I23: =H23/D4 -> 0.03328645115 | J23: 2
A24: Principal Reduction: | D24: =H24 -> 10562.50065 | H24: ='Mortgage Breakdown'!F26 -> 10562.50065
A25: Total Return Before Taxes: | D25: =D23+D24 -> 40479.03342 | E25: =D25/D4 -> 0.03504679887 | F25: 2 | H25: =H23+H24 -> 49008.33342 | I25: =H25/D4 -> 0.04243147771 | J25: 2
A26: 1 | B26: As a percent of Scheduled Gross Income | G26: 2 | H26: As a percent of Down Payment
A27: Scheduled Income | I27: Annualized Expenses:
D28: Current Income | G28: Market Income | I28: Estimated
A29: # of | B29: Bdrms/ | C29: Notes | D29: Monthly | E29: Total Monthly | G29: Monthly | H29: Total | I29: property taxes | K29: =D3*0.0125 -> 26249.9875
A30: Units | B30: Baths | D30: Rent/Average | E30: Income | G30: Rent/Unit | H30: Income | I30: Maintenance | K30: =D14 -> 2489
A31: 1 | B31: 2+1 | D31: 3500 | E31: =(A31)*(D31) -> 3500 | G31: =(D31)*(8.5%)+(D31) -> 3797.5 | H31: =G31*A31 -> 3797.5 | I31: Insurance | K31: 3000
A32: 1 | B32: 2+2 | D32: 3200 | E32: =(A32)*(D32) -> 3200 | G32: =(D32)*(8.5%)+(D32) -> 3472 | H32: =G32*A32 -> 3472 | I32: Management | K32: =SUM(E44*0) -> 0
A33: 1 | B33: 1+1 | D33: 2800 | E33: =(A33)*(D33) -> 2800 | G33: 3038 | H33: =G33*A33 -> 3038 | I33: waster sewer | K33: paid by ten
A34: 1 | B34: studio | D34: 2200 | E34: 2200 | G34: 2387 | H34: =G34 -> 2387 | I34: Utilities | K34: paid by ten
A35: 0 | B35: 2+2 | G35: 0 | H35: 0 | I35: waste management/trash | K35: 2856
A36: 0 | B36: 2+1 | G36: 0 | H36: 0
A37: 0 | B37: 2+1 | G37: 0 | H37: 0
A38: 0 | B38: 3+1 | G38: 0 | H38: 0
A40: Total Scheduled Rent: | E40: =SUM(E31:E38) -> 11700 | H40: =SUM(H31:H38) -> 12694.5
A41: Laundry | E41: 0 | H41: 0
A42: Garages | E42: 0 | H42: 0 | I42: Total Expenses: | K42: =SUM(K29:K41) -> 34594.9875
A43: Monthly Scheduled Gross Income: | E43: =SUM(E40:E42) -> 11700 | H43: =SUM(H40:H42) -> 12694.5 | I43: Expenses as %/SGI | K43: =K42/D17 -> 0.2464030449
A44: Annualized Scheduled Gross Income: | E44: =SUM(E31:E38)*12 -> 140400 | H44: =SUM(H31:H38)*12 -> 152334 | I44: ` | K44: =K42/D13 -> 11.07748559
A45: Utilities Paid by Tenant: | D45: Gas & Electric | I45: Per Unit: | K45: =K42/D6 -> 8648.746875
A46: Presented by BeachRealty, LLC

Sheet Mortgage Breakdown
D1: AMORTIZATION SCHEDULE | G1: =NOW() -> 2026-01-11T18:30:26.700
E3: Sales Price: | F3: =Proforma!D3 -> 2099999
A4: Principle: | B4: =F3-F4 -> 944999.55 | D4: =Proforma!C4 -> 0.55 | E4: Down Payment: | F4: =Proforma!D4 -> 1154999.45
A5: Interest: | B5: =Proforma!I14 -> 0.065
A6: Amortization: | B6: 360 | C6: Months | D6: 30 | E6: Years
A7: Term: | B7: 30 | C7: Years
F9: NOI: | G9: 32010
A10: Payment: | B10: =PMT($B$5/12,$B$6,-$B$4) -> 5973.039978 | D10: Annual Debt Service: | E10: =B10*12 -> 71676.47973 | F10: Cash Return: | G10: =G9-E10 -> -39666.47973
A11: Total Paid: | B11: =($B$7*12*$B$10) -> 2150294.392 | D11: Balance Due: | E11: =-PV($B$5/12,($B$6-$B$7*12),$B$10) -> 0 | F11: Return: | G11: =(G9-E10)/F4 -> -0.03434328885
A13: Month | B13: Begining | C13: Ending | D13: Payment | E13: Total Paid | F13: Total Principle | G13: Total Interest
B14: Balance | C14: Balance | F14: Paid | G14: Paid
A15: 1 | B15: =$B$4 -> 944999.55 | C15: =-PV($B$5/12,($B$6-A15),$B$10) -> 944145.2576 | D15: =$B$10 -> 5973.039978 | E15: =D15 -> 5973.039978 | F15: =B15-C15 -> 854.2924152 | G15: =E15-F15 -> 5118.747562
A16: 2 | B16: =C15 -> 944145.2576 | C16: 943286.3378 | D16: 5973.039978 | E16: =E15+D16 -> 11946.07996 | F16: =F15+B16-C16 -> 1713.212248 | G16: 10232.86771
A17: 3 | B17: 943286.3378 | C17: 942422.7654 | D17: 5973.039978 | E17: 17919.11993 | F17: 2576.784563 | G17: 15342.33537
A18: 4 | B18: 942422.7654 | C18: 941554.5154 | D18: 5973.039978 | E18: 23892.15991 | F18: 3445.034561 | G18: 20447.12535
A19: 5 | B19: 941554.5154 | C19: 940681.5624 | D19: 5973.039978 | E19: 29865.19989 | F19: 4317.98758 | G19: 25547.21231
A20: 6 | B20: 940681.5624 | C20: 939803.8809 | D20: 5973.039978 | E20: 35838.23987 | F20: 5195.669094 | G20: 30642.57077
A21: 7 | B21: 939803.8809 | C21: 938921.4453 | D21: 5973.039978 | E21: 41811.27984 | F21: 6078.104717 | G21: 35733.17513
A22: 8 | B22: 938921.4453 | C22: 938034.2298 | D22: 5973.039978 | E22: 47784.31982 | F22: 6965.3202 | G22: 40818.99962
A23: 9 | B23: 938034.2298 | C23: 937142.2086 | D23: 5973.039978 | E23: 53757.3598 | F23: 7857.341433 | G23: 45900.01837
A24: 10 | B24: 937142.2086 | C24: 936245.3556 | D24: 5973.039978 | E24: 59730.39978 | F24: 8754.194447 | G24: 50976.20533
A25: 11 | B25: 936245.3556 | C25: 935343.6446 | D25: 5973.039978 | E25: 65703.43975 | F25: 9655.905416 | G25: 56047.53434
A26: 12 | B26: 935343.6446 | C26: 934437.0493 | D26: 5973.039978 | E26: 71676.47973 | F26: 10562.50065 | G26: 61113.97908
A27: 13 | B27: 934437.0493 | C27: 933525.5434 | D27: 5973.039978 | E27: 77649.51971 | F27: 11474.00661 | G27: 66175.5131
A28: 14 | B28: 933525.5434 | C28: 932609.1001 | D28: 5973.039978 | E28: 83622.55969 | F28: 12390.4499 | G28: 71232.10979
A29: 15 | B29: 932609.1001 | C29: 931687.6928 | D29: 5973.039978 | E29: 89595.59967 | F29: 13311.85725 | G29: 76283.74242
A30: 16 | B30: 931687.6928 | C30: 930761.2944 | D30: 5973.039978 | E30: 95568.63964 | F30: 14238.25556 | G30: 81330.38409
A31: 17 | B31: 930761.2944 | C31: 929829.8781 | D31: 5973.039978 | E31: 101541.6796 | F31: 15169.67186 | G31: 86372.00776
A32: 18 | B32: 929829.8781 | C32: 928893.4167 | D32: 5973.039978 | E32: 107514.7196 | F32: 16106.13333 | G32: 91408.58627
A33: 19 | B33: 928893.4167 | C33: 927951.8827 | D33: 5973.039978 | E33: 113487.7596 | F33: 17047.6673 | G33: 96440.09228
A34: 20 | B34: 927951.8827 | C34: 927005.2488 | D34: 5973.039978 | E34: 119460.7996 | F34: 17994.30125 | G34: 101466.4983
A35: 21 | B35: 927005.2488 | C35: 926053.4872 | D35: 5973.039978 | E35: 125433.8395 | F35: 18946.06279 | G35: 106487.7767
A36: 22 | B36: 926053.4872 | C36: 925096.5703 | D36: 5973.039978 | E36: 131406.8795 | F36: 19902.97971 | G36: 111503.8998
A37: 23 | B37: 925096.5703 | C37: 924134.4701 | D37: 5973.039978 | E37: 137379.9195 | F37: 20865.07994 | G37: 116514.8396
A38: 24 | B38: 924134.4701 | C38: 923167.1585 | D38: 5973.039978 | E38: 143352.9595 | F38: 21832.39153 | G38: 121520.5679
A39: =A38+1 -> 25 | B39: 923167.1585 | C39: 922194.6073 | D39: 5973.039978 | E39: 149325.9994 | F39: 22804.94274 | G39: 126521.0567
A40: 26 | B40: 922194.6073 | C40: 921216.7881 | D40: 5973.039978 | E40: 155299.0394 | F40: 23782.76193 | G40: 131516.2775
A41: 27 | B41: 921216.7881 | C41: 920233.6724 | D41: 5973.039978 | E41: 161272.0794 | F41: 24765.87763 | G41: 136506.2018
A42: 28 | B42: 920233.6724 | C42: 919245.2314 | D42: 5973.039978 | E42: 167245.1194 | F42: 25754.31855 | G42: 141490.8008
A43: 29 | B43: 919245.2314 | C43: 918251.4365 | D43: 5973.039978 | E43: 173218.1594 | F43: 26748.11353 | G43: 146470.0458
A44: 30 | B44: 918251.4365 | C44: 917252.2584 | D44: 5973.039978 | E44: 179191.1993 | F44: 27747.29156 | G44: 151443.9078
A45: 31 | B45: 917252.2584 | C45: 916247.6682 | D45: 5973.039978 | E45: 185164.2393 | F45: 28751.8818 | G45: 156412.3575
A46: 32 | B46: 916247.6682 | C46: 915237.6364 | D46: 5973.039978 | E46: 191137.2793 | F46: 29761.91358 | G46: 161375.3657
A47: 33 | B47: 915237.6364 | C47: 914222.1336 | D47: 5973.039978 | E47: 197110.3193 | F47: 30777.41636 | G47: 166332.9029
A48: 34 | B48: 914222.1336 | C48: 913201.1302 | D48: 5973.039978 | E48: 203083.3592 | F48: 31798.41978 | G48: 171284.9395
A49: 35 | B49: 913201.1302 | C49: 912174.5964 | D49: 5973.039978 | E49: 209056.3992 | F49: 32824.95363 | G49: 176231.4456
A50: 36 | B50: 912174.5964 | C50: 911142.5021 | D50: 5973.039978 | E50: 215029.4392 | F50: 33857.04788 | G50: 181172.3913
A51: 37 | B51: 911142.5021 | C51: 910104.8174 | D51: 5973.039978 | E51: 221002.4792 | F51: 34894.73264 | G51: 186107.7465
A52: 38 | B52: 910104.8174 | C52: 909061.5118 | D52: 5973.039978 | E52: 226975.5192 | F52: 35938.03819 | G52: 191037.481
A53: 39 | B53: 909061.5118 | C53: 908012.555 | D53: 5973.039978 | E53: 232948.5591 | F53: 36986.99498 | G53: 195961.5642
A54: 40 | B54: 908012.555 | C54: 906957.9164 | D54: 5973.039978 | E54: 238921.5991 | F54: 38041.63362 | G54: 200879.9655
A55: 41 | B55: 906957.9164 | C55: 905897.5651 | D55: 5973.039978 | E55: 244894.6391 | F55: 39101.98488 | G55: 205792.6542
A56: 42 | B56: 905897.5651 | C56: 904831.4703 | D56: 5973.039978 | E56: 250867.6791 | F56: 40168.07971 | G56: 210699.5994
A57: 43 | B57: 904831.4703 | C57: 903759.6008 | D57: 5973.039978 | E57: 256840.719 | F57: 41239.94923 | G57: 215600.7698
A58: 44 | B58: 903759.6008 | C58: 902681.9253 | D58: 5973.039978 | E58: 262813.759 | F58: 42317.6247 | G58: 220496.1343
A59: 45 | B59: 902681.9253 | C59: 901598.4124 | D59: 5973.039978 | E59: 268786.799 | F59: 43401.13758 | G59: 225385.6614
A60: 46 | B60: 901598.4124 | C60: 900509.0305 | D60: 5973.039978 | E60: 274759.839 | F60: 44490.51949 | G60: 230269.3195
A61: 47 | B61: 900509.0305 | C61: 899413.7478 | D61: 5973.039978 | E61: 280732.879 | F61: 45585.80222 | G61: 235147.0767
A62: 48 | B62: 899413.7478 | C62: 898312.5323 | D62: 5973.039978 | E62: 286705.9189 | F62: 46687.01773 | G62: 240018.9012
A63: 49 | B63: 898312.5323 | C63: 897205.3518 | D63: 5973.039978 | E63: 292678.9589 | F63: 47794.19816 | G63: 244884.7607
A64: 50 | B64: 897205.3518 | C64: 896092.1742 | D64: 5973.039978 | E64: 298651.9989 | F64: 48907.37582 | G64: 249744.6231
A65: 51 | B65: 896092.1742 | C65: 894972.9668 | D65: 5973.039978 | E65: 304625.0389 | F65: 50026.58318 | G65: 254598.4557
A66: 52 | B66: 894972.9668 | C66: 893847.6971 | D66: 5973.039978 | E66: 310598.0788 | F66: 51151.85292 | G66: 259446.2259
A67: 53 | B67: 893847.6971 | C67: 892716.3321 | D67: 5973.039978 | E67: 316571.1188 | F67: 52283.21788 | G67: 264287.9009
A68: 54 | B68: 892716.3321 | C68: 891578.8389 | D68: 5973.039978 | E68: 322544.1588 | F68: 53420.71105 | G68: 269123.4477
A69: 55 | B69: 891578.8389 | C69: 890435.1843 | D69: 5973.039978 | E69: 328517.1988 | F69: 54564.36565 | G69: 273952.8331
A70: 56 | B70: 890435.1843 | C70: 889285.3349 | D70: 5973.039978 | E70: 334490.2388 | F70: 55714.21505 | G70: 278776.0237
A71: 57 | B71: 889285.3349 | C71: 888129.2572 | D71: 5973.039978 | E71: 340463.2787 | F71: 56870.2928 | G71: 283592.9859
A72: 58 | B72: 888129.2572 | C72: 886966.9174 | D72: 5973.039978 | E72: 346436.3187 | F72: 58032.63263 | G72: 288403.6861
A73: 59 | B73: 886966.9174 | C73: 885798.2815 | D73: 5973.039978 | E73: 352409.3587 | F73: 59201.26847 | G73: 293208.0902
A74: 60 | B74: 885798.2815 | C74: 884623.3156 | D74: 5973.039978 | E74: 358382.3987 | F74: 60376.23443 | G74: 298006.1642
A75: 61 | B75: 884623.3156 | C75: 883441.9852 | D75: 5973.039978 | E75: 364355.4386 | F75: 61557.56478 | G75: 302797.8739
A76: 62 | B76: 883441.9852 | C76: 882254.256 | D76: 5973.039978 | E76: 370328.4786 | F76: 62745.294 | G76: 307583.1846
A77: 63 | B77: 882254.256 | C77: 881060.0932 | D77: 5973.039978 | E77: 376301.5186 | F77: 63939.45676 | G77: 312362.0618
A78: 64 | B78: 881060.0932 | C78: 879859.4621 | D78: 5973.039978 | E78: 382274.5586 | F78: 65140.0879 | G78: 317134.4707
A79: 65 | B79: 879859.4621 | C79: =-PV($B$5/12,($B$6-A79),$B$10) -> 878652.3275 | D79: =$B$10 -> 5973.039978 | E79: 388247.5986 | F79: 66347.22246 | G79: =E79-F79 -> 321900.3761
A80: 66 | B80: =C79 -> 878652.3275 | C80: 877438.6543 | D80: 5973.039978 | E80: =E79+D80 -> 394220.6385 | F80: =F79+B80-C80 -> 67560.89566 | G80: 326659.7429
A81: 67 | B81: 877438.6543 | C81: 876218.4071 | D81: 5973.039978 | E81: 400193.6785 | F81: 68781.14293 | G81: 331412.5356
A82: 68 | B82: 876218.4071 | C82: 874991.5501 | D82: 5973.039978 | E82: 406166.7185 | F82: 70007.99987 | G82: 336158.7186
A83: 69 | B83: 874991.5501 | C83: 873758.0477 | D83: 5973.039978 | E83: 412139.7585 | F83: 71241.50228 | G83: 340898.2562
A84: 70 | B84: 873758.0477 | C84: 872517.8638 | D84: 5973.039978 | E84: 418112.7984 | F84: 72481.68617 | G84: 345631.1123
A85: 71 | B85: 872517.8638 | C85: 871270.9623 | D85: 5973.039978 | E85: 424085.8384 | F85: 73728.58772 | G85: 350357.2507
A86: 72 | B86: 871270.9623 | C86: 870017.3067 | D86: 5973.039978 | E86: 430058.8784 | F86: 74982.24332 | G86: 355076.6351
A87: 73 | B87: 870017.3067 | C87: 868756.8605 | D87: 5973.039978 | E87: 436031.9184 | F87: 76242.68955 | G87: 359789.2288
A88: 74 | B88: 868756.8605 | C88: 867489.5868 | D88: 5973.039978 | E88: 442004.9583 | F88: 77509.9632 | G88: 364494.9952
A89: 75 | B89: 867489.5868 | C89: 866215.4488 | D89: 5973.039978 | E89: 447977.9983 | F89: 78784.10125 | G89: 369193.8971
A90: 76 | B90: 866215.4488 | C90: 864934.4091 | D90: 5973.039978 | E90: 453951.0383 | F90: 80065.14088 | G90: 373885.8974
A91: 77 | B91: 864934.4091 | C91: 863646.4305 | D91: 5973.039978 | E91: 459924.0783 | F91: 81353.11947 | G91: 378570.9588
A92: 78 | B92: 863646.4305 | C92: 862351.4754 | D92: 5973.039978 | E92: 465897.1183 | F92: 82648.07462 | G92: 383249.0436
A93: 79 | B93: 862351.4754 | C93: 861049.5059 | D93: 5973.039978 | E93: 471870.1582 | F93: 83950.0441 | G93: 387920.1141
A94: 80 | B94: 861049.5059 | C94: 859740.4841 | D94: 5973.039978 | E94: 477843.1982 | F94: 85259.06593 | G94: 392584.1323
A95: 81 | B95: 859740.4841 | C95: 858424.3717 | D95: 5973.039978 | E95: 483816.2382 | F95: 86575.17828 | G95: 397241.0599
A96: 82 | B96: 858424.3717 | C96: 857101.1304 | D96: 5973.039978 | E96: 489789.2782 | F96: 87898.41958 | G96: 401890.8586
A97: 83 | B97: 857101.1304 | C97: 855770.7216 | D97: 5973.039978 | E97: 495762.3181 | F97: 89228.82843 | G97: 406533.4897
A98: 84 | B98: 855770.7216 | C98: 854433.1063 | D98: 5973.039978 | E98: 501735.3581 | F98: 90566.44367 | G98: 411168.9145
A99: 85 | B99: 854433.1063 | C99: 853088.2457 | D99: 5973.039978 | E99: 507708.3981 | F99: 91911.30432 | G99: 415797.0938
A100: 86 | B100: 853088.2457 | C100: 851736.1004 | D100: 5973.039978 | E100: 513681.4381 | F100: 93263.44963 | G100: 420417.9884
A101: 87 | B101: 851736.1004 | C101: 850376.6309 | D101: 5973.039978 | E101: 519654.4781 | F101: 94622.91907 | G101: 425031.559
A102: 88 | B102: 850376.6309 | C102: 849009.7977 | D102: 5973.039978 | E102: 525627.518 | F102: 95989.7523 | G102: 429637.7657
A103: =A102+1 -> 89 | B103: 849009.7977 | C103: 847635.5608 | D103: 5973.039978 | E103: 531600.558 | F103: 97363.9892 | G103: 434236.5688
A104: 90 | B104: 847635.5608 | C104: 846253.8801 | D104: 5973.039978 | E104: 537573.598 | F104: 98745.66989 | G104: 438827.9281
A105: 91 | B105: 846253.8801 | C105: 844864.7153 | D105: 5973.039978 | E105: 543546.638 | F105: 100134.8347 | G105: 443411.8033
A106: 92 | B106: 844864.7153 | C106: 843468.0259 | D106: 5973.039978 | E106: 549519.6779 | F106: 101531.5241 | G106: 447988.1538
A107: 93 | B107: 843468.0259 | C107: 842063.771 | D107: 5973.039978 | E107: 555492.7179 | F107: 102935.779 | G107: 452556.939
A108: 94 | B108: 842063.771 | C108: 840651.9098 | D108: 5973.039978 | E108: 561465.7579 | F108: 104347.6402 | G108: 457118.1177
A109: 95 | B109: 840651.9098 | C109: 839232.401 | D109: 5973.039978 | E109: 567438.7979 | F109: 105767.149 | G109: 461671.6489
A110: 96 | B110: 839232.401 | C110: 837805.2032 | D110: 5973.039978 | E110: 573411.8379 | F110: 107194.3468 | G110: 466217.4911
A111: 97 | B111: 837805.2032 | C111: 836370.2748 | D111: 5973.039978 | E111: 579384.8778 | F111: 108629.2752 | G111: 470755.6026
A112: 98 | B112: 836370.2748 | C112: 834927.5738 | D112: 5973.039978 | E112: 585357.9178 | F112: 110071.9762 | G112: 475285.9416
A113: 99 | B113: 834927.5738 | C113: 833477.0581 | D113: 5973.039978 | E113: 591330.9578 | F113: 111522.4919 | G113: 479808.4659
A114: 100 | B114: 833477.0581 | C114: 832018.6856 | D114: 5973.039978 | E114: 597303.9978 | F114: 112980.8644 | G114: 484323.1333
A115: 101 | B115: 832018.6856 | C115: 830552.4135 | D115: 5973.039978 | E115: 603277.0377 | F115: 114447.1365 | G115: 488829.9012
A116: 102 | B116: 830552.4135 | C116: 829078.1991 | D116: 5973.039978 | E116: 609250.0777 | F116: 115921.3509 | G116: 493328.7268
A117: 103 | B117: 829078.1991 | C117: 827595.9993 | D117: 5973.039978 | E117: 615223.1177 | F117: 117403.5507 | G117: 497819.567
A118: 104 | B118: 827595.9993 | C118: 826105.771 | D118: 5973.039978 | E118: 621196.1577 | F118: 118893.779 | G118: 502302.3787
A119: 105 | B119: 826105.771 | C119: 824607.4706 | D119: 5973.039978 | E119: 627169.1977 | F119: 120392.0794 | G119: 506777.1183
A120: 106 | B120: 824607.4706 | C120: 823101.0545 | D120: 5973.039978 | E120: 633142.2376 | F120: 121898.4955 | G120: 511243.7421
A121: 107 | B121: 823101.0545 | C121: 821586.4785 | D121: 5973.039978 | E121: 639115.2776 | F121: 123413.0715 | G121: 515702.2061
A122: 108 | B122: 821586.4785 | C122: 820063.6986 | D122: 5973.039978 | E122: 645088.3176 | F122: 124935.8514 | G122: 520152.4662
A123: 109 | B123: 820063.6986 | C123: 818532.6704 | D123: 5973.039978 | E123: 651061.3576 | F123: 126466.8796 | G123: 524594.4779
A124: 110 | B124: 818532.6704 | C124: 816993.349 | D124: 5973.039978 | E124: 657034.3975 | F124: 128006.201 | G124: 529028.1966
A125: 111 | B125: 816993.349 | C125: 815445.6897 | D125: 5973.039978 | E125: 663007.4375 | F125: 129553.8603 | G125: 533453.5772
A126: 112 | B126: 815445.6897 | C126: 813889.6472 | D126: 5973.039978 | E126: 668980.4775 | F126: 131109.9028 | G126: 537870.5747
A127: 113 | B127: 813889.6472 | C127: 812325.1761 | D127: 5973.039978 | E127: 674953.5175 | F127: 132674.3739 | G127: 542279.1436
A128: 114 | B128: 812325.1761 | C128: 810752.2309 | D128: 5973.039978 | E128: 680926.5575 | F128: 134247.3191 | G128: 546679.2383
A129: 115 | B129: 810752.2309 | C129: 809170.7655 | D129: 5973.039978 | E129: 686899.5974 | F129: 135828.7845 | G129: 551070.8129
A130: 116 | B130: 809170.7655 | C130: 807580.7338 | D130: 5973.039978 | E130: 692872.6374 | F130: 137418.8162 | G130: 555453.8212
A131: 117 | B131: 807580.7338 | C131: 805982.0895 | D131: 5973.039978 | E131: 698845.6774 | F131: 139017.4605 | G131: 559828.2169
A132: 118 | B132: 805982.0895 | C132: 804374.7858 | D132: 5973.039978 | E132: 704818.7174 | F132: 140624.7642 | G132: 564193.9532
A133: 119 | B133: 804374.7858 | C133: 802758.7759 | D133: 5973.039978 | E133: 710791.7573 | F133: 142240.7741 | G133: 568550.9833
A134: 120 | B134: 802758.7759 | C134: 801134.0126 | D134: 5973.039978 | E134: 716764.7973 | F134: 143865.5374 | G134: 572899.26
A135: 121 | B135: 801134.0126 | C135: 799500.4486 | D135: 5973.039978 | E135: 722737.8373 | F135: 145499.1014 | G135: 577238.7359
A136: 122 | B136: 799500.4486 | C136: 797858.036 | D136: 5973.039978 | E136: 728710.8773 | F136: 147141.514 | G136: 581569.3633
A137: 123 | B137: 797858.036 | C137: 796206.7271 | D137: 5973.039978 | E137: 734683.9173 | F137: 148792.8229 | G137: 585891.0943
A138: 124 | B138: 796206.7271 | C138: 794546.4735 | D138: 5973.039978 | E138: 740656.9572 | F138: 150453.0765 | G138: 590203.8808
A139: 125 | B139: 794546.4735 | C139: 792877.2269 | D139: 5973.039978 | E139: 746629.9972 | F139: 152122.3231 | G139: 594507.6742
A140: 126 | B140: 792877.2269 | C140: 791198.9386 | D140: 5973.039978 | E140: 752603.0372 | F140: 153800.6114 | G140: 598802.4258
A141: 127 | B141: 791198.9386 | C141: 789511.5596 | D141: 5973.039978 | E141: 758576.0772 | F141: 155487.9904 | G141: 603088.0867
A142: 128 | B142: 789511.5596 | C142: 787815.0405 | D142: 5973.039978 | E142: 764549.1171 | F142: 157184.5095 | G142: 607364.6077
A143: 129 | B143: 787815.0405 | C143: =-PV($B$5/12,($B$6-A143),$B$10) -> 786109.332 | D143: =$B$10 -> 5973.039978 | E143: 770522.1571 | F143: 158890.218 | G143: =E143-F143 -> 611631.9391
A144: 130 | B144: =C143 -> 786109.332 | C144: 784394.3843 | D144: 5973.039978 | E144: =E143+D144 -> 776495.1971 | F144: =F143+B144-C144 -> 160605.1657 | G144: 615890.0314
A145: 131 | B145: 784394.3843 | C145: 782670.1472 | D145: 5973.039978 | E145: 782468.2371 | F145: 162329.4028 | G145: 620138.8343
A146: 132 | B146: 782670.1472 | C146: 780936.5705 | D146: 5973.039978 | E146: 788441.2771 | F146: 164062.9795 | G146: 624378.2976
A147: 133 | B147: 780936.5705 | C147: 779193.6036 | D147: 5973.039978 | E147: 794414.317 | F147: 165805.9464 | G147: 628608.3707
A148: 134 | B148: 779193.6036 | C148: 777441.1957 | D148: 5973.039978 | E148: 800387.357 | F148: 167558.3543 | G148: 632829.0027
A149: 135 | B149: 777441.1957 | C149: 775679.2955 | D149: 5973.039978 | E149: 806360.397 | F149: 169320.2545 | G149: 637040.1425
A150: 136 | B150: 775679.2955 | C150: 773907.8517 | D150: 5973.039978 | E150: 812333.437 | F150: 171091.6983 | G150: 641241.7387
A151: 137 | B151: 773907.8517 | C151: 772126.8126 | D151: 5973.039978 | E151: 818306.4769 | F151: 172872.7374 | G151: 645433.7395
A152: 138 | B152: 772126.8126 | C152: 770336.1262 | D152: 5973.039978 | E152: 824279.5169 | F152: 174663.4238 | G152: 649616.0931
A153: 139 | B153: 770336.1262 | C153: 768535.7402 | D153: 5973.039978 | E153: 830252.5569 | F153: 176463.8098 | G153: 653788.7471
A154: 140 | B154: 768535.7402 | C154: 766725.6022 | D154: 5973.039978 | E154: 836225.5969 | F154: 178273.9478 | G154: 657951.649
A155: 141 | B155: 766725.6022 | C155: 764905.6592 | D155: 5973.039978 | E155: 842198.6369 | F155: 180093.8908 | G155: 662104.7461
A156: 142 | B156: 764905.6592 | C156: 763075.8582 | D156: 5973.039978 | E156: 848171.6768 | F156: 181923.6918 | G156: 666247.985
A157: 143 | B157: 763075.8582 | C157: 761236.1458 | D157: 5973.039978 | E157: 854144.7168 | F157: 183763.4042 | G157: 670381.3126
A158: 144 | B158: 761236.1458 | C158: 759386.4683 | D158: 5973.039978 | E158: 860117.7568 | F158: 185613.0817 | G158: 674504.6751
A159: 145 | B159: 759386.4683 | C159: 757526.7717 | D159: 5973.039978 | E159: 866090.7968 | F159: 187472.7783 | G159: 678618.0184
A160: 146 | B160: 757526.7717 | C160: 755657.0017 | D160: 5973.039978 | E160: 872063.8367 | F160: 189342.5483 | G160: 682721.2884
A161: 147 | B161: 755657.0017 | C161: 753777.1038 | D161: 5973.039978 | E161: 878036.8767 | F161: 191222.4462 | G161: 686814.4305
A162: 148 | B162: 753777.1038 | C162: 751887.0232 | D162: 5973.039978 | E162: 884009.9167 | F162: 193112.5268 | G162: 690897.3899
A163: 149 | B163: 751887.0232 | C163: 749986.7046 | D163: 5973.039978 | E163: 889982.9567 | F163: 195012.8454 | G163: 694970.1112
A164: 150 | B164: 749986.7046 | C164: 748076.0926 | D164: 5973.039978 | E164: 895955.9967 | F164: 196923.4574 | G164: 699032.5392
A165: 151 | B165: 748076.0926 | C165: 746155.1314 | D165: 5973.039978 | E165: 901929.0366 | F165: 198844.4186 | G165: 703084.618
A166: 152 | B166: 746155.1314 | C166: 744223.7651 | D166: 5973.039978 | E166: 907902.0766 | F166: 200775.7849 | G166: 707126.2917
A167: =A166+1 -> 153 | B167: 744223.7651 | C167: 742281.9371 | D167: 5973.039978 | E167: 913875.1166 | F167: 202717.6129 | G167: 711157.5037
A168: 154 | B168: 742281.9371 | C168: 740329.591 | D168: 5973.039978 | E168: 919848.1566 | F168: 204669.959 | G168: 715178.1976
A169: 155 | B169: 740329.591 | C169: 738366.6696 | D169: 5973.039978 | E169: 925821.1965 | F169: 206632.8804 | G169: 719188.3162
A170: 156 | B170: 738366.6696 | C170: 736393.1158 | D170: 5973.039978 | E170: 931794.2365 | F170: 208606.4342 | G170: 723187.8023
A171: 157 | B171: 736393.1158 | C171: 734408.8719 | D171: 5973.039978 | E171: 937767.2765 | F171: 210590.6781 | G171: 727176.5984
A172: 158 | B172: 734408.8719 | C172: 732413.8799 | D172: 5973.039978 | E172: 943740.3165 | F172: 212585.6701 | G172: 731154.6464
A173: 159 | B173: 732413.8799 | C173: 730408.0818 | D173: 5973.039978 | E173: 949713.3565 | F173: 214591.4682 | G173: 735121.8883
A174: 160 | B174: 730408.0818 | C174: 728391.4189 | D174: 5973.039978 | E174: 955686.3964 | F174: 216608.1311 | G174: 739078.2654
A175: 161 | B175: 728391.4189 | C175: 726363.8325 | D175: 5973.039978 | E175: 961659.4364 | F175: 218635.7175 | G175: 743023.7189
A176: 162 | B176: 726363.8325 | C176: 724325.2633 | D176: 5973.039978 | E176: 967632.4764 | F176: 220674.2867 | G176: 746958.1896
A177: 163 | B177: 724325.2633 | C177: 722275.6518 | D177: 5973.039978 | E177: 973605.5164 | F177: 222723.8982 | G177: 750881.6182
A178: 164 | B178: 722275.6518 | C178: 720214.9383 | D178: 5973.039978 | E178: 979578.5563 | F178: 224784.6117 | G178: 754793.9446
A179: 165 | B179: 720214.9383 | C179: 718143.0625 | D179: 5973.039978 | E179: 985551.5963 | F179: 226856.4875 | G179: 758695.1088
A180: 166 | B180: 718143.0625 | C180: 716059.9641 | D180: 5973.039978 | E180: 991524.6363 | F180: 228939.5859 | G180: 762585.0504
A181: 167 | B181: 716059.9641 | C181: 713965.5823 | D181: 5973.039978 | E181: 997497.6763 | F181: 231033.9677 | G181: 766463.7086
A182: 168 | B182: 713965.5823 | C182: 711859.8559 | D182: 5973.039978 | E182: 1003470.716 | F182: 233139.6941 | G182: 770331.0221
A183: 169 | B183: 711859.8559 | C183: 709742.7235 | D183: 5973.039978 | E183: 1009443.756 | F183: 235256.8265 | G183: 774186.9297
A184: 170 | B184: 709742.7235 | C184: 707614.1232 | D184: 5973.039978 | E184: 1015416.796 | F184: 237385.4268 | G184: 778031.3695
A185: 171 | B185: 707614.1232 | C185: 705473.9931 | D185: 5973.039978 | E185: 1021389.836 | F185: 239525.5569 | G185: 781864.2793
A186: 172 | B186: 705473.9931 | C186: 703322.2706 | D186: 5973.039978 | E186: 1027362.876 | F186: 241677.2794 | G186: 785685.5968
A187: 173 | B187: 703322.2706 | C187: 701158.8929 | D187: 5973.039978 | E187: 1033335.916 | F187: 243840.6571 | G187: 789495.259
A188: 174 | B188: 701158.8929 | C188: 698983.7969 | D188: 5973.039978 | E188: 1039308.956 | F188: 246015.7531 | G188: 793293.2031
A189: 175 | B189: 698983.7969 | C189: 696796.9192 | D189: 5973.039978 | E189: 1045281.996 | F189: 248202.6308 | G189: 797079.3653
A190: 176 | B190: 696796.9192 | C190: 694598.1959 | D190: 5973.039978 | E190: 1051255.036 | F190: 250401.3541 | G190: 800853.6819
A191: 177 | B191: 694598.1959 | C191: 692387.5628 | D191: 5973.039978 | E191: 1057228.076 | F191: 252611.9872 | G191: 804616.0888
A192: 178 | B192: 692387.5628 | C192: 690164.9554 | D192: 5973.039978 | E192: 1063201.116 | F192: 254834.5946 | G192: 808366.5215
A193: 179 | B193: 690164.9554 | C193: 687930.309 | D193: 5973.039978 | E193: 1069174.156 | F193: 257069.241 | G193: 812104.915
A194: 180 | B194: 687930.309 | C194: 685683.5582 | D194: 5973.039978 | E194: 1075147.196 | F194: 259315.9918 | G194: 815831.2041
A195: 181 | B195: 685683.5582 | C195: 683424.6374 | D195: 5973.039978 | E195: 1081120.236 | F195: 261574.9126 | G195: 819545.3234
A196: 182 | B196: 683424.6374 | C196: 681153.4809 | D196: 5973.039978 | E196: 1087093.276 | F196: 263846.0691 | G196: 823247.2069
A197: 183 | B197: 681153.4809 | C197: 678870.0223 | D197: 5973.039978 | E197: 1093066.316 | F197: 266129.5277 | G197: 826936.7882
A198: 184 | B198: 678870.0223 | C198: 676574.1949 | D198: 5973.039978 | E198: 1099039.356 | F198: 268425.3551 | G198: 830614.0008
A199: 185 | B199: 676574.1949 | C199: 674265.9319 | D199: 5973.039978 | E199: 1105012.396 | F199: 270733.6181 | G199: 834278.7777
A200: 186 | B200: 674265.9319 | C200: 671945.1657 | D200: 5973.039978 | E200: 1110985.436 | F200: 273054.3843 | G200: 837931.0515
A201: 187 | B201: 671945.1657 | C201: 669611.8287 | D201: 5973.039978 | E201: 1116958.476 | F201: 275387.7213 | G201: 841570.7545
A202: 188 | B202: 669611.8287 | C202: 667265.8528 | D202: 5973.039978 | E202: 1122931.516 | F202: 277733.6972 | G202: 845197.8186
A203: 189 | B203: 667265.8528 | C203: 664907.1695 | D203: 5973.039978 | E203: 1128904.556 | F203: 280092.3805 | G203: 848812.1753
... 171 more rows
